[Event "10th Cesme Open-A 2024"]
[Site "Cesme"]
[Date "2024.06.23"]
[Round "1"]
[White "Zeynalli, Rashad"]
[Black "Annaberdiyev, Meylis"]
[Result "0-1"]
[ECO "B13"]
[WhiteElo "2127"]
[BlackElo "2467"]
[Annotator "RC"]
[PlyCount "172"]
[EventDate "2024.06.23"]
[EventType "swiss"]
[EventCountry "TUR"]
[SourceTitle "playchess.com"]
[Source "ChessBase"]
[SourceQuality "1"]
[TimeControl "5400+30"]

1. d4 {[%emt 0:01:00]} d5 {[%emt 0:01:00]} 2. Bf4 {[%emt 0:00:30]} c5 {[%emt 0:00:00]} 3. e3 {[%emt 0:00:00]} Nc6 {[%emt 0:00:00]} 4. Nf3 {[%emt 0:00:00]} cxd4 {[%emt 0:00:30]} 5. exd4 {[%emt 0:00:30]} Bg4 {[%emt 0:00:30]} 6. c3 {[%emt 0:01:30]} e6 {[%emt 0:00:30]} 7. Qb3 {[%emt 0:01:30]} Bd6 {[%emt 0:00:30]} 8. Qxb7 {[%emt 0:04:30]} Bxf4 {[%emt 0:00:30]} 9. Qxc6+ {[%emt 0:02:30]} Kf8 {[%emt 0:01:30]} 10. Ne5 {[%emt 0:01:30]} Bxe5 {[%emt 0:03:30]} 11. dxe5 {[%emt 0:00:30]} Ne7 {[%emt 0:00:00]} 12. Qb7 {[%emt 0:01:30]} Qb8 {[%emt 0:08:00]} 13. Qxb8+ {[%emt 0:05:30]} Rxb8 {[%emt 0:00:30]} 14. b4 {[%emt 0:09:30]} Ng6 {[%emt 0:01:30]} 15. Nd2 {[%emt 0:04:30]} Nxe5 {[%emt 0:03:30]} 16. f4 {[%emt 0:01:30]} Nd7 {[%emt 0:01:30]} 17. Bd3 {[%emt 0:01:30]} d4 {[%emt 0:09:30]} 18. Rc1 {[%emt 0:01:30]} Ke7 {[%emt 0:00:30]} 19. h3 {[%emt 0:04:30]} Bh5 {[%emt 0:00:30]} 20. g4 {[%emt 0:01:30]} Bg6 {[%emt 0:00:00]} 21. f5 {[%emt 0:01:30]} exf5 {[%emt 0:00:00]} 22. gxf5 {[%emt 0:00:30]} Bh5 {[%emt 0:00:00]} 23. Kf2 {[%emt 0:04:30]} Rhc8 {[%emt 0:02:00]} 24. cxd4 {[%emt 0:05:30]} Rxc1 {[%emt 0:00:30]} 25. Rxc1 {[%emt 0:00:30]} Rxb4 {[%emt 0:00:30]} 26. Rc7 {[%emt 0:00:30]} Kd8 {[%emt 0:03:30]} 27. Rxa7 {[%emt 0:03:30]} Rxd4 {[%emt 0:00:30]} 28. Ke3 {[%emt 0:00:30]} Rh4 {[%emt 0:00:30]} 29. Bf1 {[%emt 0:00:30]} g6 {[%emt 0:07:30]} 30. a4 {[%emt 0:05:30]} gxf5 {[%emt 0:06:30]} 31. a5 {[%emt 0:04:30]} Ne5 {[%emt 0:00:30]} 32. Ra8+ {[%emt 0:07:30]} Kc7 {[%emt 0:01:30]} 33. Re8 {[%emt 0:02:30]} Kd6 {[%emt 0:05:30]} 34. Rd8+ {[%emt 0:01:30]} Kc7 {[%emt 0:02:30]} 35. Re8 {[%emt 0:04:08]} Nc6 {[%emt 0:06:30]} 36. Nc4 {[%emt 0:01:33]} Bd1 {[%emt 0:10:30]} 37. a6 {[%emt 0:04:18]} Bb3 {[%emt 0:04:30]} 38. a7 {[%emt 0:00:45]} Nxa7 {[%emt 0:00:30]} 39. Re7+ {[%emt 0:00:00]} Kb8 {[%emt 0:03:06]} 40. Re8+ {[%emt 0:00:13]} Nc8 {[%emt 0:05:30]} 41. Nd6 {[%emt 0:03:17]} Be6 {[%emt 0:00:05]} 42. Rf8 {[%emt 0:03:20]} Kc7 {[%emt 0:03:50]} 43. Nxc8 {[%emt 0:04:15]} Bxc8 {[%emt 0:00:30]} 44. Rxf7+ {[%emt 0:00:30]} Kd6 {[%emt 0:00:00]} 45. Ra7 {[%emt 0:00:13]} Be6 {[%emt 0:01:25]} 46. Bg2 {[%emt 0:01:00]} Bd7 {[%emt 0:06:57]} 47. Kf2 {[%emt 0:02:39]} h5 {[%emt 0:01:16]} 48. Kg3 {[%emt 0:02:35]} Rb4 {[%emt 0:01:19]} 49. Ra6+ {[%emt 0:00:30]} Ke5 {[%emt 0:00:00]} 50. Ra5+ {[%emt 0:00:05]} Kf6 {[%emt 0:00:28]} 51. Ra7 {[%emt 0:00:50]} h4+ {[%emt 0:00:58]} 52. Kf2 {[%emt 0:00:48]} Rb2+ {[%emt 0:00:08]} 53. Ke3 {[%emt 0:00:20]} Be6 {[%emt 0:01:06]} 54. Bf1 {[%emt 0:00:01]} f4+ {[%emt 0:01:36]} 55. Kf3 {[%emt 0:01:23]} Ke5 {[%emt 0:01:13]} 56. Ra5+ {[%emt 0:00:09]} Bd5+ {[%emt 0:00:23]} 57. Kg4 {[%emt 0:00:05]} Rb4 {[%emt 0:01:02]} 58. Kxh4 {[%emt 0:00:59]} Ke4 {[%emt 0:00:01]} 59. Kg4 {[%emt 0:01:02]} Be6+ {[%emt 0:00:32]} 60. Kh4 {[%emt 0:00:04]} Kf3 {[%emt 0:00:59]} 61. Bb5 {[%emt 0:00:19]} Kf2 {[%emt 0:00:19]} 62. Ra4 {[%emt 0:00:50]} Rxb5 {[%emt 0:00:36]} 63. Rxf4+ {[%emt 0:00:01]} Ke3 {[%emt 0:00:00]} 64. Rf6 {[%emt 0:00:53]} Bf5 {[%emt 0:00:55]} 65. Kg3 {[%emt 0:00:48]} Be4 {[%emt 0:00:05]} 66. Kg4 {[%emt 0:00:56]} Rb1 {[%emt 0:00:24]} 67. h4 {[%emt 0:00:00]} Rg1+ {[%emt 0:00:45]} 68. Kh5 {[%emt 0:00:00]} Kd4 {[%emt 0:00:00]} 69. Kh6 {[%emt 0:00:56]} Ke5 {[%emt 0:00:21]} 70. Rf7 {[%emt 0:00:26]} Rg6+ {[%emt 0:00:45]} 71. Kh5 {[%emt 0:00:02]} Rg8 {[%emt 0:00:00]} 72. Kh6 {[%emt 0:01:05]} Ke6 {[%emt 0:00:30]} 73. Rg7 {[%emt 0:00:30]} Ra8 {[%emt 0:00:30]} 74. Kg5 {[%emt 0:00:30]} Bf3 {[%emt 0:00:30]} 75. Rg6+ {[%emt 0:00:30]} Ke5 {[%emt 0:00:30]} 76. h5 {[%emt 0:00:30]} Ra5 {[%emt 0:00:19]} 77. Kh4 {[%emt 0:00:37]} Ra1 {[%emt 0:00:30]} 78. Kg3 {[%emt 0:00:17]} Be4 {[%emt 0:00:52]} 79. Rb6 {[%emt 0:00:30]} Rg1+ {[%emt 0:00:30]} 80. Kf2 {[%emt 0:00:30]} Rh1 {[%emt 0:00:30]} 81. Rh6 {[%emt 0:00:30]} Kf4 {[%emt 0:00:30]} 82. Rh8 {[%emt 0:00:30]} Rh2+ {[%emt 0:00:30]} 83. Kg1 {[%emt 0:00:30]} Rg2+ {[%emt 0:00:30]} 84. Kf1 {[%emt 0:00:30]} Ke3 {[%emt 0:00:00]} 85. h6 {[%emt 0:00:46]} Rh2 {[%emt 0:01:14]} 86. Rg8 {[%emt 0:00:01]} Rb2 {[%emt 0:00:23]} 0-1

[Event "10th Cesme Open-A 2024"]
[Site "Cesme"]
[Date "2024.06.23"]
[Round "1"]
[White "Baylav, Can"]
[Black "Durak, Can"]
[Result "0-1"]
[ECO "B66"]
[WhiteElo "2118"]
[BlackElo "2442"]
[Annotator "TA"]
[PlyCount "88"]
[EventDate "2024.06.23"]
[EventType "swiss"]
[EventCountry "TUR"]
[SourceTitle "playchess.com"]
[Source "ChessBase"]
[SourceQuality "1"]
[TimeControl "5400+30"]

{[%evp 13,88,13,31,20,11,15,31,27,39,37,54,33,69,78,77,64,87,83,80,64,69,25,23,19,68,62,76,0,0,0,0,-3,-17,-18,-38,-29,0,0,29,17,26,0,0,0,0,-5,-10,-129,-133,-132,-117,-216,-210,-355,-118,-176,0,-368,-236,-448,-452,-531,-543,-1121,-347,-550,-538,-1489,-1417,-1460,-629,-591,-614,-592,-596,-676,-665]} 1. e4 {[%emt 0:01:00]} c5 {[%emt 0:01:00]} 2. Nf3 {[%emt 0:00:30]} d6 {[%emt 0:00:30]} 3. d4 {[%emt 0:00:30]} cxd4 {[%emt 0:00:30]} 4. Nxd4 {[%emt 0:00:30]} Nf6 {[%emt 0:00:30]} 5. Nc3 {[%emt 0:00:30]} Nc6 {[%emt 0:00:30]} 6. Bg5 {[%emt 0:00:00]} e6 {[%emt 0:01:30]} 7. Qd2 {[%emt 0:00:00]} a6 {[%emt 0:00:30]} 8. Nxc6 {[%emt 0:00:00]} bxc6 {[%emt 0:00:00]} 9. O-O-O {[%emt 0:00:00][%cal Oe4e5] aiming for e5!} Be7 {[%emt 0:03:00]} 10. Bxf6 {[%emt 0:00:30] White is slightly better.} gxf6 {[%emt 0:00:30]} 11. Bc4 {[%emt 0:00:30]} Qa5 {[%emt 0:01:30]} 12. Bb3 {[%emt 0:01:30]} h5 {[%emt 0:03:30]} 13. f4 {[%emt 0:02:30]} Rb8 {[%emt 0:03:30]} 14. Kb1 {[%emt 0:02:30]} Kf8 {[%emt 0:10:30]} 15. Rhf1 {[%emt 0:15:30]} Bd7 {[%emt 0:05:30] [#]} 16. f5 $1 {[%emt 0:12:30]} exf5 {[%emt 0:11:30]} 17. exf5 {[%emt 0:00:30]} d5 {[%emt 0:00:30]} 18. Qd4 {[%emt 0:06:30]} Qb6 {[%emt 0:05:30]} (18... Rb4 $11 {was preferrable.} 19. Qe3 Bc5) 19. Qh4 $14 {[%emt 0:01:30]} Qc7 {[%emt 0:04:30]} 20. g3 {[%emt 0:17:30]} (20. a3 $16) 20... Rb4 $11 {[%emt 0:03:30]} 21. Rd4 {[%emt 0:00:30]} Qb6 {[%emt 0:00:30]} 22. Rxb4 {[%emt 0:04:30]} Qxb4 {[%emt 0:00:30]} 23. Rf4 {[%emt 0:01:30]} (23. Qxb4 {simplifies} Bxb4 24. Na4 h4 25. c4) 23... Qb6 {[%emt 0:00:30] [#] ( -> ...Qg1+)} 24. a3 {[%emt 0:00:30]} Rh6 {[%emt 0:00:30]} 25. Qh3 {[%emt 0:07:30]} Qe3 {[%emt 0:02:30][%cal Oe7a3]} 26. Qf1 {[%emt 0:00:30]} Bd6 {[%emt 0:01:30]} 27. Nd1 {[%emt 0:02:30]} Qd2 {[%emt 0:01:30]} 28. Rf2 {[%emt 0:03:41]} Qa5 {[%emt 0:00:00]} 29. Qe2 {[%emt 0:01:43]} Qb6 {[%emt 0:01:00]} 30. g4 {[%emt 0:00:50]} (30. Ka2 $11) 30... hxg4 $17 {[%emt 0:00:30]} 31. Qxg4 {[%emt 0:00:26]} Rxh2 {[%emt 0:01:30]} 32. Rf1 {[%emt 0:00:38] White is weak on the dark squares} (32. Rxh2 $17 {might work better.} Bxh2 33. Ka2) 32... Be5 $19 {[%emt 0:00:30]} 33. Rg1 {[%emt 0:00:27]} (33. Nc3 $142) 33... Ke7 $2 {[%emt 0:01:30] Active counter play!} (33... Bxf5 $19 {and Black stays clearly on top.} 34. Qg8+ Ke7) 34. Re1 $17 {[%emt 0:00:07]} Kf8 $2 {[%emt 0:00:00]} (34... a5 35. Rxe5+ fxe5 36. Qg5+ Kf8) 35. Rg1 $1 $19 {[%emt 0:00:49]} Qd4 {[%emt 0:01:00]} 36. Qg7+ {[%emt 0:01:18]} (36. Qxd4 Bxd4 37. Rf1) 36... Ke7 {[%emt 0:00:00]} 37. Nc3 {[%emt 0:00:22]} Bxf5 {[%emt 0:02:00] Strongly threatening ...Qf2. A strong pair of Bishops.} 38. Rd1 {[%emt 0:00:01]} Rd2 {[%emt 0:00:30]} (38... Qf2 {[%cal Rf5c2]} 39. Rc1 Bf4 (39... Qg2 $2 40. Qxg2 Rxg2 41. Rf1 $19)) 39. Rf1 {[%emt 0:00:01]} (39. Re1 {was called for.}) 39... Bg6 {[%emt 0:03:30] ...Qe3 would now be deadly. Black is clearly winning.} 40. Qh8 {[%emt 0:00:27]} Qb6 {[%emt 0:00:30]} 41. Kc1 {[%emt 0:01:04]} Rg2 {[%emt 0:00:30]} (41... Qe3 $142 42. Kb1 d4) 42. Qh1 {[%emt 0:01:25]} Qe3+ {[%emt 0:02:30]} 43. Kb1 {[%emt 0:00:30]} Rh2 {[%emt 0:00:00]} 44. Qxd5 {[%emt 0:00:06]} Qxc3 {[%emt 0:00:00] Weighted Error Value: White=0.73/Black=0.55.  Missed win:     	---       	Black=1      Mistake:       	White=6     	Black=3      Inaccurate:     	White=4     	Black=4      OK:         	White=10    	Black=16     Best:        	White=1     	Black=2      Strong:       	White=1     	---} (44... cxd5 45. Nxd5+ Kf8 46. Nxe3 $11) 0-1

[Event "10th Cesme Open-A 2024"]
[Site "Cesme"]
[Date "2024.06.23"]
[Round "1"]
[White "Biyiksiz, Ali Batuhan"]
[Black "Pacher, Milan"]
[Result "1/2-1/2"]
[ECO "A13"]
[WhiteElo "2107"]
[BlackElo "2387"]
[Annotator "RC"]
[PlyCount "71"]
[EventDate "2024.06.23"]
[EventType "swiss"]
[EventCountry "TUR"]
[SourceTitle "playchess.com"]
[Source "ChessBase"]
[SourceQuality "1"]
[TimeControl "5400+30"]

1. Nf3 {[%emt 0:01:00]} d5 {[%emt 0:01:00]} 2. e3 {[%emt 0:00:30]} Nf6 {[%emt 0:00:30]} 3. c4 {[%emt 0:00:30]} e6 {[%emt 0:00:30]} 4. b3 {[%emt 0:00:30]} c5 {[%emt 0:00:00]} 5. Bb2 {[%emt 0:00:30]} Nc6 {[%emt 0:00:00]} 6. cxd5 {[%emt 0:09:30]} exd5 {[%emt 0:00:00]} 7. Bb5 {[%emt 0:00:30]} Bd6 {[%emt 0:00:00]} 8. O-O {[%emt 0:03:30]} O-O {[%emt 0:00:00]} 9. d4 {[%emt 0:01:30]} cxd4 {[%emt 0:00:00]} 10. Nxd4 {[%emt 0:04:30]} Bd7 {[%emt 0:00:30]} 11. Nd2 {[%emt 0:04:30]} Rc8 {[%emt 0:05:30]} 12. Be2 {[%emt 0:05:30]} Bb8 {[%emt 0:01:30]} 13. N2f3 {[%emt 0:05:30]} Qe7 {[%emt 0:06:30]} 14. Rc1 {[%emt 0:06:30]} Rfe8 {[%emt 0:01:30]} 15. Nb5 {[%emt 0:06:30]} a6 {[%emt 0:01:30]} 16. Ba3 {[%emt 0:02:30]} Qe6 {[%emt 0:00:30]} 17. Nbd4 {[%emt 0:01:30]} Nxd4 {[%emt 0:01:30]} 18. Qxd4 {[%emt 0:00:30]} Ne4 {[%emt 0:01:30]} 19. Rxc8 {[%emt 0:11:30]} Rxc8 {[%emt 0:00:00]} 20. Bb2 {[%emt 0:00:30]} f6 {[%emt 0:01:00]} 21. Rd1 {[%emt 0:02:30]} Bc6 {[%emt 0:00:00]} 22. Rc1 {[%emt 0:02:30]} Qd6 {[%emt 0:02:00]} 23. g3 {[%emt 0:01:30]} Bd7 {[%emt 0:01:30]} 24. Rxc8+ {[%emt 0:01:30]} Bxc8 {[%emt 0:00:30]} 25. Bd3 {[%emt 0:09:00]} Be6 {[%emt 0:07:30]} 26. Bxe4 {[%emt 0:04:21]} dxe4 {[%emt 0:00:00]} 27. Qxe4 {[%emt 0:00:32]} Qd1+ {[%emt 0:03:00]} 28. Kg2 {[%emt 0:00:30]} Qd7 {[%emt 0:00:00]} 29. Qd4 {[%emt 0:02:30]} Bh3+ {[%emt 0:00:00]} 30. Kg1 {[%emt 0:00:15]} Qc6 {[%emt 0:00:30]} 31. Qc4+ {[%emt 0:04:28]} Qxc4 {[%emt 0:00:30]} 32. bxc4 {[%emt 0:00:00]} Kf7 {[%emt 0:00:00]} 33. Nd4 {[%emt 0:00:44]} Be5 {[%emt 0:01:00]} 34. f3 {[%emt 0:01:10]} Bxd4 {[%emt 0:08:30]} 35. exd4 {[%emt 0:00:06]} Bf5 {[%emt 0:00:30]} 36. a4 {[%emt 0:03:09]} 1/2-1/2

[Event "10th Cesme Open-A 2024"]
[Site "Cesme"]
[Date "2024.06.23"]
[Round "1"]
[White "Anacak, Hasan Gunes"]
[Black "Samani, Yamac"]
[Result "0-1"]
[ECO "B13"]
[WhiteElo "2095"]
[BlackElo "2360"]
[Annotator "RC"]
[PlyCount "88"]
[EventDate "2024.06.23"]
[EventType "swiss"]
[EventCountry "TUR"]
[SourceTitle "playchess.com"]
[Source "ChessBase"]
[SourceQuality "1"]
[TimeControl "5400+30"]

1. e4 {[%emt 0:01:00]} c6 {[%emt 0:01:00]} 2. d4 {[%emt 0:00:30]} d5 {[%emt 0:00:30]} 3. exd5 {[%emt 0:00:00]} cxd5 {[%emt 0:00:00]} 4. Bd3 {[%emt 0:00:00]} Nf6 {[%emt 0:00:00]} 5. c3 {[%emt 0:00:30]} Bg4 {[%emt 0:00:30]} 6. Ne2 {[%emt 0:01:30]} e6 {[%emt 0:03:30]} 7. O-O {[%emt 0:00:30]} Bd6 {[%emt 0:02:30]} 8. Qe1 {[%emt 0:03:30]} Qc7 {[%emt 0:06:30]} 9. f3 {[%emt 0:04:30]} Bh5 {[%emt 0:07:30]} 10. Qh4 {[%emt 0:02:30]} O-O {[%emt 0:04:30]} 11. Nf4 {[%emt 0:06:30]} Bg6 {[%emt 0:02:30]} 12. Nxg6 {[%emt 0:01:30]} hxg6 {[%emt 0:01:30]} 13. f4 {[%emt 0:01:30]} Ne4 {[%emt 0:11:30]} 14. Nd2 {[%emt 0:10:30]} Be7 {[%emt 0:02:30]} 15. Qh3 {[%emt 0:06:30]} f5 {[%emt 0:01:30]} 16. Nxe4 {[%emt 0:31:30]} dxe4 {[%emt 0:01:30]} 17. Be2 {[%emt 0:03:30]} Nc6 {[%emt 0:07:30]} 18. b3 {[%emt 0:07:37]} Kf7 {[%emt 0:01:30]} 19. g3 {[%emt 0:04:29]} Bf6 {[%emt 0:06:30]} 20. Bb2 {[%emt 0:01:24]} Nxd4 {[%emt 0:12:30]} 21. cxd4 {[%emt 0:01:39]} Qc2 {[%emt 0:01:30]} 22. Rac1 {[%emt 0:06:35]} Qxe2 {[%emt 0:04:49]} 23. Rc7+ {[%emt 0:00:06]} Kg8 {[%emt 0:00:55]} 24. Qg2 {[%emt 0:00:11]} Qxg2+ {[%emt 0:07:36]} 25. Kxg2 {[%emt 0:00:06]} Rac8 {[%emt 0:02:58]} 26. Rfc1 {[%emt 0:03:48]} Rxc7 {[%emt 0:00:30]} 27. Rxc7 {[%emt 0:00:02]} Rd8 {[%emt 0:00:00]} 28. Rc4 {[%emt 0:01:53]} b5 {[%emt 0:02:43]} 29. Rc7 {[%emt 0:00:32]} Bxd4 {[%emt 0:04:15]} 30. Bxd4 {[%emt 0:00:04]} Rxd4 {[%emt 0:00:00]} 31. Rxa7 {[%emt 0:00:30]} Rd2+ {[%emt 0:00:26]} 32. Kf1 {[%emt 0:00:00]} Rxh2 {[%emt 0:01:16]} 33. Rb7 {[%emt 0:00:36]} Rxa2 {[%emt 0:00:24]} 34. Rxb5 {[%emt 0:00:08]} Kf7 {[%emt 0:00:19]} 35. Rb7+ {[%emt 0:00:11]} Kf6 {[%emt 0:00:10]} 36. b4 {[%emt 0:00:00]} Rb2 {[%emt 0:01:24]} 37. b5 {[%emt 0:00:14]} e3 {[%emt 0:01:12]} 38. b6 {[%emt 0:00:29]} g5 {[%emt 0:01:12]} 39. fxg5+ {[%emt 0:00:27]} Ke5 {[%emt 0:01:04]} 40. Rxg7 {[%emt 0:02:35]} Ke4 {[%emt 0:00:22]} 41. Rc7 {[%emt 0:00:32]} Kf3 {[%emt 0:00:40]} 42. Rc1 {[%emt 0:00:10]} Rxb6 {[%emt 0:00:12]} 43. g6 {[%emt 0:01:10]} Rb7 {[%emt 0:01:19]} 44. Ke1 {[%emt 0:00:30]} Rg7 {[%emt 0:00:38]} 0-1

[Event "10th Cesme Open-A 2024"]
[Site "Cesme"]
[Date "2024.06.23"]
[Round "1"]
[White "Abbasi Abeluie, Mohammad Mehdi"]
[Black "Schekachikhin, Maksim"]
[Result "1/2-1/2"]
[ECO "A21"]
[WhiteElo "2079"]
[BlackElo "2343"]
[Annotator "RC"]
[PlyCount "90"]
[EventDate "2024.06.23"]
[EventType "swiss"]
[EventCountry "TUR"]
[SourceTitle "playchess.com"]
[Source "ChessBase"]
[SourceQuality "1"]
[TimeControl "5400+30"]

1. c4 {[%emt 0:01:00]} e5 {[%emt 0:01:00]} 2. Nc3 {[%emt 0:00:30]} Bb4 {[%emt 0:00:30]} 3. Nd5 {[%emt 0:00:30]} Be7 {[%emt 0:00:30]} 4. Nf3 {[%emt 0:00:30]} d6 {[%emt 0:01:30]} 5. e3 {[%emt 0:01:30]} Nf6 {[%emt 0:02:30]} 6. Nxe7 {[%emt 0:00:30]} Qxe7 {[%emt 0:00:30]} 7. d3 {[%emt 0:01:30]} O-O {[%emt 0:01:30]} 8. Be2 {[%emt 0:00:30]} c5 {[%emt 0:04:30]} 9. O-O {[%emt 0:05:30]} Nc6 {[%emt 0:00:30]} 10. b3 {[%emt 0:02:30]} a5 {[%emt 0:06:30]} 11. d4 {[%emt 0:10:30]} a4 {[%emt 0:11:30]} 12. d5 {[%emt 0:05:30]} Nb8 {[%emt 0:13:30]} 13. Bb2 {[%emt 0:08:30]} Na6 {[%emt 0:12:30]} 14. bxa4 {[%emt 0:09:30]} Bd7 {[%emt 0:02:30]} 15. a5 {[%emt 0:04:30]} Nb8 {[%emt 0:12:30]} 16. Bc3 {[%emt 0:02:30]} Ne4 {[%emt 0:00:30]} 17. Be1 {[%emt 0:01:30]} f5 {[%emt 0:00:30]} 18. Qb1 {[%emt 0:10:30]} Bc8 {[%emt 0:02:30]} 19. Bd3 {[%emt 0:01:30]} Nxf2 {[%emt 0:10:23]} 20. Rxf2 {[%emt 0:00:30]} e4 {[%emt 0:00:06]} 21. Bc2 {[%emt 0:11:30]} exf3 {[%emt 0:00:30]} 22. Rxf3 {[%emt 0:00:00]} g6 {[%emt 0:01:16]} 23. Ba4 {[%emt 0:05:39]} Qe5 {[%emt 0:07:21]} 24. Qc1 {[%emt 0:02:11]} Bd7 {[%emt 0:01:29]} 25. Bc3 {[%emt 0:01:17]} Qe7 {[%emt 0:00:09]} 26. Bc2 {[%emt 0:01:17]} Bc8 {[%emt 0:00:38]} 27. e4 {[%emt 0:01:31]} Nd7 {[%emt 0:02:10]} 28. exf5 {[%emt 0:01:34]} Ne5 {[%emt 0:00:04]} 29. Bxe5 {[%emt 0:04:42]} Qxe5 {[%emt 0:00:05]} 30. fxg6 {[%emt 0:00:57]} Rxf3 {[%emt 0:00:13]} 31. gxf3 {[%emt 0:00:03]} hxg6 {[%emt 0:02:35]} 32. Qe1 {[%emt 0:01:33]} Qxe1+ {[%emt 0:01:51]} 33. Rxe1 {[%emt 0:00:30]} Kf7 {[%emt 0:00:00]} 34. Kf2 {[%emt 0:00:26]} Rxa5 {[%emt 0:00:03]} 35. a4 {[%emt 0:00:30]} Bf5 {[%emt 0:00:56]} 36. Bb3 {[%emt 0:04:21]} Ra6 {[%emt 0:00:18]} 37. Re2 {[%emt 0:00:47]} Bd7 {[%emt 0:02:37]} 38. Ra2 {[%emt 0:00:34]} Kf6 {[%emt 0:00:39]} 39. Ke3 {[%emt 0:00:23]} Ra8 {[%emt 0:00:08]} 40. Bc2 {[%emt 0:00:09]} g5 {[%emt 0:00:12]} 41. Rb2 {[%emt 0:00:55]} Bxa4 {[%emt 0:00:48]} 42. Be4 {[%emt 0:00:00]} Rh8 {[%emt 0:00:42]} 43. Rb6 {[%emt 0:00:19]} Ke5 {[%emt 0:01:03]} 44. Rxb7 {[%emt 0:00:08]} Kf6 {[%emt 0:00:22]} 45. Rb6 {[%emt 0:00:14]} Ke5 {[%emt 0:00:00]} 1/2-1/2

[Event "10th Cesme Open-A 2024"]
[Site "Cesme"]
[Date "2024.06.23"]
[Round "1"]
[White "Aliyev, Elnur"]
[Black "Ebrahimi Herab, Hamidreza"]
[Result "0-1"]
[ECO "A16"]
[WhiteElo "2073"]
[BlackElo "2333"]
[Annotator "RC"]
[PlyCount "149"]
[EventDate "2024.06.23"]
[EventType "swiss"]
[EventCountry "TUR"]
[SourceTitle "playchess.com"]
[Source "ChessBase"]
[SourceQuality "1"]
[TimeControl "5400+30"]

1. c4 {[%emt 0:01:00]} Nf6 {[%emt 0:01:00]} 2. Nc3 {[%emt 0:00:30]} d5 {[%emt 0:00:30]} 3. cxd5 {[%emt 0:00:30]} Nxd5 {[%emt 0:00:30]} 4. Nf3 {[%emt 0:00:00]} g6 {[%emt 0:01:30]} 5. Qc2 {[%emt 0:00:00]} Nc6 {[%emt 0:08:30]} 6. e4 {[%emt 0:04:30]} Ndb4 {[%emt 0:04:30]} 7. Qb1 {[%emt 0:02:30]} Nd4 {[%emt 0:08:30]} 8. Nxd4 {[%emt 0:01:30]} Qxd4 {[%emt 0:01:30]} 9. d3 {[%emt 0:18:30]} Bg7 {[%emt 0:05:30]} 10. Be2 {[%emt 0:05:30]} Be6 {[%emt 0:03:30]} 11. O-O {[%emt 0:05:30]} O-O {[%emt 0:05:30]} 12. Rd1 {[%emt 0:15:30]} Nc6 {[%emt 0:03:30]} 13. Be3 {[%emt 0:21:30]} Qd7 {[%emt 0:00:30]} 14. Bf1 {[%emt 0:00:30]} Rfd8 {[%emt 0:03:30]} 15. Ne2 {[%emt 0:02:21]} Nd4 {[%emt 0:01:30]} 16. Nxd4 {[%emt 0:03:37]} Bxd4 {[%emt 0:00:00]} 17. Bxd4 {[%emt 0:00:56]} Qxd4 {[%emt 0:00:00]} 18. Qc2 {[%emt 0:01:13]} c5 {[%emt 0:02:30]} 19. Re1 {[%emt 0:01:04]} a5 {[%emt 0:02:30]} 20. Rac1 {[%emt 0:00:45]} b6 {[%emt 0:00:30]} 21. a3 {[%emt 0:00:31]} a4 {[%emt 0:00:30]} 22. Qe2 {[%emt 0:06:54]} Ra5 {[%emt 0:01:30]} 23. Rc3 {[%emt 0:00:05]} b5 {[%emt 0:04:30]} 24. Qe3 {[%emt 0:00:56]} b4 {[%emt 0:00:30]} 25. Qxd4 {[%emt 0:00:00]} Rxd4 {[%emt 0:00:30]} 26. Rcc1 {[%emt 0:01:10]} Rb5 {[%emt 0:01:30]} 27. f4 {[%emt 0:01:56]} bxa3 {[%emt 0:03:30]} 28. bxa3 {[%emt 0:00:30]} Rb3 {[%emt 0:00:30]} 29. Ra1 {[%emt 0:00:00]} Kf8 {[%emt 0:01:30]} 30. Rec1 {[%emt 0:01:34]} c4 {[%emt 0:01:30]} 31. dxc4 {[%emt 0:01:06]} Rxe4 {[%emt 0:05:30]} 32. g3 {[%emt 0:00:02]} Ree3 {[%emt 0:01:30]} 33. c5 {[%emt 0:01:17]} Ke8 {[%emt 0:08:41]} 34. c6 {[%emt 0:00:46]} Rec3 {[%emt 0:00:20]} 35. Rxc3 {[%emt 0:02:25]} Rxc3 {[%emt 0:01:53]} 36. Rd1 {[%emt 0:00:33]} Kf8 {[%emt 0:02:49]} 37. Rd4 {[%emt 0:00:39]} Rxa3 {[%emt 0:02:50]} 38. c7 {[%emt 0:01:08]} Rc3 {[%emt 0:00:11]} 39. Bc4 {[%emt 0:00:30]} Bh3 {[%emt 0:01:02]} 40. Rd8+ {[%emt 0:00:27]} Kg7 {[%emt 0:00:00]} 41. c8=Q {[%emt 0:00:59]} Bxc8 {[%emt 0:00:06]} 42. Rxc8 {[%emt 0:00:30]} a3 {[%emt 0:00:00]} 43. Kf2 {[%emt 0:00:00]} a2 {[%emt 0:01:21]} 44. Ra8 {[%emt 0:00:30]} Rxc4 {[%emt 0:00:30]} 45. Rxa2 {[%emt 0:00:00]} Kf6 {[%emt 0:00:00]} 46. Ra6+ {[%emt 0:00:05]} e6 {[%emt 0:00:00]} 47. Ra2 {[%emt 0:00:48]} Kf5 {[%emt 0:00:43]} 48. Kf3 {[%emt 0:00:26]} Rc3+ {[%emt 0:00:06]} 49. Kf2 {[%emt 0:00:19]} h5 {[%emt 0:00:05]} 50. Ra7 {[%emt 0:01:24]} Rc2+ {[%emt 0:00:47]} 51. Kf3 {[%emt 0:00:30]} Rc3+ {[%emt 0:00:00]} 52. Kg2 {[%emt 0:00:20]} f6 {[%emt 0:00:00]} 53. Ra5+ {[%emt 0:00:53]} e5 {[%emt 0:00:14]} 54. fxe5 {[%emt 0:00:07]} fxe5 {[%emt 0:00:13]} 55. Ra6 {[%emt 0:00:18]} Rc2+ {[%emt 0:00:00]} 56. Kg1 {[%emt 0:01:01]} e4 {[%emt 0:00:08]} 57. h3 {[%emt 0:00:23]} e3 {[%emt 0:00:14]} 58. Kf1 {[%emt 0:00:24]} Rf2+ {[%emt 0:00:25]} 59. Kg1 {[%emt 0:00:36]} Rb2 {[%emt 0:03:00]} 60. Kf1 {[%emt 0:00:06]} Ke4 {[%emt 0:03:17]} 61. Rxg6 {[%emt 0:00:53]} Kf3 {[%emt 0:00:56]} 62. Rf6+ {[%emt 0:00:30]} Kxg3 {[%emt 0:00:00]} 63. Re6 {[%emt 0:00:25]} Rb3 {[%emt 0:01:13]} 64. Ke2 {[%emt 0:00:24]} Kxh3 {[%emt 0:00:09]} 65. Kf3 {[%emt 0:00:41]} h4 {[%emt 0:01:05]} 66. Re4 {[%emt 0:00:27]} Rb7 {[%emt 0:03:11]} 67. Rxe3 {[%emt 0:00:54]} Rf7+ {[%emt 0:00:30]} 68. Ke2+ {[%emt 0:00:25]} Kg2 {[%emt 0:00:00]} 69. Re8 {[%emt 0:00:16]} Rg7 {[%emt 0:00:00]} 70. Ke3 {[%emt 0:00:30]} h3 {[%emt 0:00:00]} 71. Ra8 {[%emt 0:00:58]} h2 {[%emt 0:00:10]} 72. Ra2+ {[%emt 0:00:18]} Kh3 {[%emt 0:00:07]} 73. Ra1 {[%emt 0:00:24]} Rg1 {[%emt 0:00:05]} 74. Ra8 {[%emt 0:00:20]} h1=Q {[%emt 0:00:08]} 75. Ke2 {[%emt 0:00:56]} 0-1